{"text_format":"3","workbook":"xlsx","n_sheets":1,"sheets":["分组"],"not_rendered":{"defined_names":3},"read":"whole","date_system":"1900"}

{"sheet":"分组","index":0,"n_rows":56,"n_cols":10,"rows_kept":56,"merged":[[0,0,0,1],[1,0,1,9],[2,0,19,0],[20,0,35,0],[36,0,49,0],[50,0,55,0],[50,3,50,9],[51,3,51,9],[52,3,52,9],[53,3,53,9],[54,3,54,9],[55,3,55,9]]}
["附件："]
["南京江北新区2020年教师招聘面试报名部分学科分组情况表"]
["小学语文","小学语文招聘单位","招聘数","小学语文第1组","小学语文第2组","小学语文第3组","小学语文第4组","小学语文第5组","小学语文第6组","合计"]
[null,"南京市南化第四小学",1,{"$nulls":3},1,null,null,{"$f":"SUM(D4:I4)","v":1}]
[null,"南京市南化实验小学",3,1,1,1,{"$nulls":3},3]
[null,"南京市江北新区六一小学",1,null,1,{"$nulls":4},1]
[null,"南京市琅琊路小学分校天润城小学",1,1,{"$nulls":5},1]
[null,"南京市北京东路小学分校红太阳小学",6,1,2,2,null,null,1,6]
[null,"南京市琅琊路小学威尼斯水城分校",6,null,2,null,1,2,1,6]
[null,"南京市浦口实验小学高新分校",4,null,1,1,1,1,null,4]
[null,"南京市浦口实验小学",6,1,null,2,2,1,null,6]
[null,"南京市琅琊路小学明发滨江分校",3,{"$nulls":3},1,1,1,3]
[null,"南京市浦口实验小学万江分校",2,null,null,1,1,null,null,2]
[null,"南京晓庄学院顶山实验小学",3,1,null,1,null,1,null,3]
[null,"南京市江北新区浦洲路小学",1,null,1,{"$nulls":4},1]
[null,"南京工业大学实验小学",1,1,{"$nulls":5},1]
[null,"南京市第二十九中学天润城分校",6,1,1,null,2,1,1,6]
[null,"南京市浦口外国语学校",3,1,{"$nulls":3},1,1,3]
[null,"南京市第一中学江北新区分校",3,1,null,1,null,null,1,3]
[null,"小学语文小计",{"$f":"SUM(C4:C19)","v":50},9,9,9,9,8,6,50]
["小学数学","小学数学招聘单位","招聘数","小学数学第1组","小学数学第2组","小学数学第3组","小学数学第4组",null,null,"合计"]
[null,"南京市南化实验小学",2,1,1,{"$nulls":4},{"$f":"SUM(D22:I22)","v":2}]
[null,"南京市琅琊路小学分校天润城小学",3,1,1,null,1,null,null,3]
[null,"南京市北京东路小学分校红太阳小学",4,1,1,1,1,null,null,4]
[null,"南京市琅琊路小学威尼斯水城分校",3,1,1,1,{"$nulls":3},3]
[null,"南京市浦口实验小学高新分校",2,1,null,1,{"$nulls":3},2]
[null,"南京市浦口实验小学",4,1,1,1,1,null,null,4]
[null,"南京市琅琊路小学明发滨江分校",2,null,1,null,1,null,null,2]
[null,"南京市力学小学海德北岸分校",1,null,null,1,{"$nulls":3},1]
[null,"南京市浦口实验小学万江分校",1,null,null,1,{"$nulls":3},1]
[null,"南京晓庄学院顶山实验小学",2,null,1,1,{"$nulls":3},2]
[null,"南京市江北新区浦洲路小学",1,null,1,{"$nulls":4},1]
[null,"南京市第二十九中学天润城分校",3,1,1,null,1,null,null,3]
[null,"南京市浦口外国语学校",3,1,null,1,1,null,null,3]
[null,"南京市第一中学江北新区分校",3,1,1,1,{"$nulls":3},3]
[null,"小学数学小计",{"$f":"SUM(C22:C35)","v":34},9,10,9,6,null,null,34]
["小学英语","小学英语招聘单位","招聘数","小学英语第1组","小学英语第2组","小学英语第3组",{"$nulls":3},"合计"]
[null,"南京市南化实验小学",1,null,null,1,{"$nulls":3},{"$f":"SUM(D38:I38)","v":1}]
[null,"南京市琅琊路小学分校天润城小学",3,1,1,1,{"$nulls":3},3]
[null,"南京市琅琊路小学威尼斯水城分校",2,1,1,{"$nulls":4},2]
[null,"南京市浦口实验小学高新分校",2,1,1,{"$nulls":4},2]
[null,"南京市江北新区鼎泰实验小学",1,null,1,{"$nulls":4},1]
[null,"南京市浦口实验小学",2,1,1,{"$nulls":4},2]
[null,"南京市琅琊路小学明发滨江分校",2,1,null,1,{"$nulls":3},2]
[null,"南京市力学小学海德北岸分校",1,null,1,{"$nulls":4},1]
[null,"南京市江北新区浦洲路小学",1,1,{"$nulls":5},1]
[null,"南京市第二十九中学天润城分校",2,1,null,1,{"$nulls":3},2]
[null,"南京市浦口外国语学校",1,null,1,{"$nulls":4},1]
[null,"南京市第一中学江北新区分校",1,null,null,1,{"$nulls":3},1]
[null,"小学英语小计",{"$f":"SUM(C38:C49)","v":19},7,7,5,{"$nulls":3},19]
["学前教育","学前教育招聘单位","招聘数","备注"]
[null,"南京市大厂实验幼儿园",3,"教育办园，全额拨款事业单位"]
[null,"南京市浦口小红花幼儿园",2,"教育办园，全额拨款事业单位"]
[null,"南京市鼓楼幼儿园江北新区分园",2,"教育办园，差额拨款事业单位"]
[null,"南京市江北新区西厂门幼儿园",2,"街道办园，差额拨款事业单位，由社会事业局代招"]
[null,"学前教育小计",{"$f":"SUM(C52:C55)","v":9}]